{"text_format":"1","workbook":"xlsx","n_sheets":5,"sheets":["Liste","Öğretmen Ata","Kura","Yazdır","Yazdır (2)"],"not_rendered":{"charts":0,"images":6,"macros":1,"external_links":0,"defined_names":4,"comments":3,"pivot_tables":0},"unopened":[],"bounds":{"document_bytes":16777216,"sheet_cells":100000,"rows_first":2000,"rows_last":500,"rows_between":2000,"halvings":0,"cell_chars":16384,"cell_head_chars":4096},"cells_cut":0,"cells_raw":0,"read":"whole","date_system":"1900"}

{"sheet":"Liste","index":0,"n_rows":102,"n_cols":38,"rows_kept":102,"cut":false,"hidden":false,"merged":[[1,12,1,15],[1,9,1,10],[0,0,0,9],[0,10,0,11],[4,9,5,9]]}
["K  U  R  A         P  R  O  G  R  A  M  I",null,null,null,null,null,null,null,null,null,"Hazırlayan : Alparslan TOYOĞLU\nVersiyon:1.3  (15/01/2017)"]
[null,"SIRA\n NO","PERSONEL\n NO","GÖREVLİNİN ADI SOYADI","Cinsiyet","Doğum Tarihi",null,null,null,"AÇIKLAMALAR",null,null,"G E N E L"]
[null,1,1,"ABDULLAH TÜMÜKLÜ","Erkek","2011-01-01",{"$error":"#VALUE!"},null,null,"SINAV YAPILACAK SALON SAYISI",22,null,"ŞUBE SAYISI","GÖREVLİ SAYISI","Kız","Toplam",null,null,null,null,null,null,null,null,null,null,"VOLKAN ÖCAL","Erkek",null,null,1,null,null,null,null,null,null,"ABDULLAH TÜMÜKLÜ"]
[null,2,2,"ABİDİN AKKAYA","Erkek","2011-01-02",{"$error":"#VALUE!"},null,null,null,null,null,"1. Şube",0,0,0,null,null,0,0,0,null,null,null,null,null,"ŞERİFE GEDİK","Erkek",null,null,2,null,null,null,null,null,null,"ABİDİN AKKAYA"]
[null,3,3,"ALİ ERAKBIYIK","Erkek","2011-01-03",{"$error":"#VALUE!"},null,null,"SALON ADINI YAZINIZ",null,null,"2. Şube",0,0,0,null,null,0,0,0,null,null,null,null,null,"ÖZDEN KARAÇAY","Erkek",null,null,3,null,null,null,null,null,null,"ALİ ERAKBIYIK"]
[null,4,4,"ARMAĞAN ÖZTÜRK","Erkek","2011-01-04",{"$error":"#VALUE!"},null,null,null,null,null,"3. Şube",0,0,0,null,null,0,0,0,null,null,null,null,null,"NESLİHAN YILDIRIM","Erkek",null,null,4,null,null,null,null,null,null,"ARMAĞAN ÖZTÜRK"]
[null,5,5,"AYŞE KAKİLLİOĞLU","Erkek","2011-01-05",{"$error":"#VALUE!"},null,null,"1 NOLU SALON",null,null,"4. Şube",0,0,0,null,null,0,0,0,null,null,null,null,null,"ZEHRA KÜÇÜK","Erkek",null,null,5,null,null,null,null,null,null,"AYŞE KAKİLLİOĞLU"]
[null,6,6,"AYŞEGÜL AYDOĞMUŞ","Erkek","2011-01-06",{"$error":"#VALUE!"},null,null,"2 NOLU SALON",null,null,"5. Şube",0,0,0,null,null,0,0,0,null,null,null,null,null,"VEDAT HALICI","Erkek",null,null,6,null,null,null,null,null,null,"AYŞEGÜL AYDOĞMUŞ"]
[null,7,7,"CİHAN DEMİR","Erkek","2011-01-07",{"$error":"#VALUE!"},null,null,"3 NOLU SALON",null,null,"6. Şube",0,0,0,null,null,0,0,0,null,null,null,null,null,"KASIM ÇINAR","Erkek",null,null,7,null,null,null,null,null,null,"CİHAN DEMİR"]
[null,8,8,"DENİZ ÖZSOY","Erkek","2011-01-08",{"$error":"#VALUE!"},null,null,"4 NOLU SALON",null,null,"7. Şube",0,0,0,null,null,0,0,0,null,null,null,null,null,"ZEHRA DOĞAN","Erkek",null,null,8,null,null,null,null,null,null,"DENİZ ÖZSOY"]
[null,9,9,"EBRU ÇİMEN ","Erkek","2011-01-09",{"$error":"#VALUE!"},null,null,"5 NOLU SALON",null,null,"8. Şube",0,0,0,null,null,0,0,0,null,null,null,null,null,"HATİCE ÖÇAL","Erkek",null,null,9,null,null,null,null,null,null,"EBRU ÇİMEN "]
[null,10,10,"EROL PEKŞİN","Erkek","2011-01-10",{"$error":"#VALUE!"},null,null,"6 NOLU SALON",null,null,"9. Şube",0,0,0,null,null,0,0,0,null,null,null,null,null,"UMUT MOLU","Erkek",null,null,10,null,null,null,null,null,null,"EROL PEKŞİN"]
[null,11,11,"FATMA ERDOĞAN","Erkek","2011-01-11",{"$error":"#VALUE!"},null,null,"7 NOLU SALON",null,null,"10. Şube",0,0,0,null,null,0,0,0,null,null,null,null,null,"MAHMUT ALİDAĞI","Erkek",null,null,11,null,null,null,null,null,null,"FATMA ERDOĞAN"]
[null,12,12,"FUAT YILMAZ","Erkek","2011-01-12",{"$error":"#VALUE!"},null,null,"8 NOLU SALON",null,null,"11. Şube",0,0,0,null,null,0,0,0,null,null,null,null,null,"KORKUT ŞAHİN","Erkek",null,null,12,null,null,null,null,null,null,"FUAT YILMAZ"]
[null,13,13,"GALİP KAYA","Erkek","2011-01-13",{"$error":"#VALUE!"},null,null,"9 NOLU SALON",null,null,"12. Şube",0,0,0,null,null,0,0,0,null,null,null,null,null,"MEHMET TOKER","Erkek",null,null,13,null,null,null,null,null,null,"GALİP KAYA"]
[null,14,14,"HAKAN CEYLAN","Erkek","2011-01-14",{"$error":"#VALUE!"},null,null,"10 NOLU SALON",null,null,"13. Şube",0,0,0,null,null,0,0,0,null,null,null,null,null,"MUSTAFA ARIK","Erkek",null,null,14,null,null,null,null,null,null,"HAKAN CEYLAN"]
[null,15,15,"HAKAN ÇALAP","Erkek","2011-01-15",{"$error":"#VALUE!"},null,null,"11 NOLU SALON",null,null,"14. Şube",0,0,0,null,null,0,0,0,null,null,null,null,null,"MUSTAFA UÇAR","Erkek",null,null,15,null,null,null,null,null,null,"HAKAN ÇALAP"]
[null,16,16,"HATİCE BURAK","Erkek","2011-01-16",{"$error":"#VALUE!"},null,null,"12 NOLU SALON",null,null,"15. Şube",0,0,0,null,null,0,0,0,null,null,null,null,null,"NURAY KÜLAHCI","Erkek",null,null,16,null,null,null,null,null,null,"HATİCE BURAK"]
[null,17,17,"HATİCE ÖÇAL","Erkek","2011-01-17",{"$error":"#VALUE!"},null,null,"13 NOLU SALON",null,null,"16. Şube",0,0,0,null,null,0,0,0,null,null,null,null,null,"HATİCE BURAK","Erkek",null,null,17,null,null,null,null,null,null,"HATİCE ÖÇAL"]
[null,18,18,"HURŞUT BESEREK","Erkek","2011-01-18",{"$error":"#VALUE!"},null,null,"14 NOLU SALON",null,null,"17. Şube",0,0,0,null,null,0,0,0,null,null,null,null,null,"MAHMUT TEKİN","Erkek",null,null,18,null,null,null,null,null,null,"HURŞUT BESEREK"]
[null,19,19,"HÜSEYİN KÜRŞAD DURAK","Erkek","2011-01-19",{"$error":"#VALUE!"},null,null,"15 NOLU SALON",null,null,"18. Şube",0,0,0,null,null,0,0,0,null,null,null,null,null,"MEHMET YILDIRIM 2","Erkek",null,null,19,null,null,null,null,null,null,"HÜSEYİN KÜRŞAD DURAK"]
[null,20,20,"İBRAHİM ŞİMŞEK","Erkek","2011-01-20",{"$error":"#VALUE!"},null,null,"16 NOLU SALON",null,null,"19. Şube",0,0,0,null,null,0,0,0,null,null,null,null,null,"RECEP YÜKSEL","Erkek",null,null,20,null,null,null,null,null,null,"İBRAHİM ŞİMŞEK"]
[null,21,21,"İSMAİL KİRAZ","Erkek","2011-01-21",{"$error":"#VALUE!"},null,null,"17 NOLU SALON",null,null,"20. Şube",0,0,0,null,null,0,0,0,null,null,null,null,null,"MEHMET YILDIRIM 1","Erkek",null,null,21,null,null,null,null,null,null,"İSMAİL KİRAZ"]
[null,22,22,"KASIM ÇINAR","Erkek","2011-01-22",{"$error":"#VALUE!"},null,null,"18 NOLU SALON",null,null,"21. Şube",2,1,2,null,null,null,null,null,null,null,null,null,null,"NUR ZÜHAL AKSU","Erkek",null,null,22,null,null,null,null,null,null,"KASIM ÇINAR"]
[null,23,23,"KEMAL HANİLÇİ","Erkek","2011-01-23",{"$error":"#VALUE!"},null,null,"19 NOLU SALON",null,null,"22. Şube",2,1,2,null,null,null,null,null,null,null,null,null,null,"YAVUZ SELİM GÖNEN","Erkek",null,null,1,null,null,null,null,null,null,"KEMAL HANİLÇİ"]
[null,24,24,"KORKUT ŞAHİN","Erkek","2011-01-24",{"$error":"#VALUE!"},null,null,"20 NOLU SALON",null,null,"23. Şube",null,null,null,null,null,null,null,null,null,null,null,null,null,"SELÇUK ASLANTAŞ","Erkek",null,null,2,null,null,null,null,null,null,"KORKUT ŞAHİN"]
[null,25,25,"MAHMUT ALİDAĞI","Erkek","2011-01-25",{"$error":"#VALUE!"},null,null,"21 NOLU SALON",null,null,"24. Şube",null,null,null,null,null,null,null,null,null,null,null,null,null,"HAKAN ÇALAP","Erkek",null,null,3,null,null,null,null,null,null,"MAHMUT ALİDAĞI"]
[null,26,26,"MAHMUT TEKİN","Erkek","2011-01-26",{"$error":"#VALUE!"},null,null,"YEDEK SALON",null,null,"25. Şube",null,null,null,null,null,null,null,null,null,null,null,null,null,"EBRU ÇİMEN ","Erkek",null,null,4,null,null,null,null,null,null,"MAHMUT TEKİN"]
[null,27,27,"MEHMET TOKER","Erkek","2011-01-27",{"$error":"#VALUE!"},null,null,"23 NOLU SALON",null,null,"Toplam",{"$f":"SUM(N4:N28)","v":4},{"$f":"SUM(O4:O28)","v":2},{"$f":"SUM(P4:P28)","v":4},null,null,null,null,null,null,null,null,null,null,"HAKAN CEYLAN","Erkek",null,null,5,null,null,null,null,null,null,"MEHMET TOKER"]
[null,28,28,"MEHMET YILDIRIM 1","Erkek","2011-01-28",{"$error":"#VALUE!"},null,null,"24 NOLU SALON",null,null,null,null,null,null,null,null,null,null,null,null,null,null,null,null,"MERVE EDA ÇATAR","Erkek",null,null,6,null,null,null,null,null,null,"MEHMET YILDIRIM 1"]
[null,29,29,"MEHMET YILDIRIM 2","Erkek","2011-01-29",{"$error":"#VALUE!"},null,null,"25 NOLU SALON",null,null,null,null,null,null,null,null,null,null,null,null,null,null,null,null,"FATMA ERDOĞAN","Erkek",null,null,7,null,null,null,null,null,null,"MEHMET YILDIRIM 2"]
[null,30,30,"MERVE EDA ÇATAR","Erkek","2011-01-30",{"$error":"#VALUE!"},null,null,"26 NOLU SALON",null,null,null,null,null,null,null,null,null,null,null,null,null,null,null,null,"ARMAĞAN ÖZTÜRK","Erkek",null,null,8,null,null,null,null,null,null,"MERVE EDA ÇATAR"]
[null,31,31,"MUHARREM ÇINAR","Erkek","2011-01-31",{"$error":"#VALUE!"},null,null,"27 NOLU SALON",null,null,null,null,null,null,null,null,null,null,null,null,null,null,null,null,"HÜSEYİN KÜRŞAD DURAK","Erkek",null,null,9,null,null,null,null,null,null,"MUHARREM ÇINAR"]
[null,32,32,"MUSTAFA ARIK","Erkek","2011-02-01",{"$error":"#VALUE!"},null,null,"28 NOLU SALON",null,null,null,null,null,null,null,null,null,null,null,null,null,null,null,null,"MUHARREM ÇINAR","Erkek",null,null,10,null,null,null,null,null,null,"MUSTAFA ARIK"]
[null,33,33,"MUSTAFA TAŞ","Erkek","2011-02-02",{"$error":"#VALUE!"},null,null,"29 NOLU SALON",null,null,null,null,null,null,null,null,null,null,null,null,null,null,null,null,"ABDULLAH TÜMÜKLÜ","Erkek",null,null,11,null,null,null,null,null,null,"MUSTAFA TAŞ"]
[null,34,34,"MUSTAFA UÇAR","Erkek","2011-02-03",{"$error":"#VALUE!"},null,null,"30 NOLU SALON",null,null,null,null,null,null,null,null,null,null,null,null,null,null,null,null,"MUSTAFA TAŞ","Erkek",null,null,12,null,null,null,null,null,null,"MUSTAFA UÇAR"]
[null,35,35,"MUTULLAH ÇETİN","Erkek","2011-02-04",{"$error":"#VALUE!"},null,null,"31 NOLU SALON",null,null,null,null,null,null,null,null,null,null,null,null,null,null,null,null,"İBRAHİM ŞİMŞEK","Erkek",null,null,13,null,null,null,null,null,null,"MUTULLAH ÇETİN"]
[null,36,36,"NESLİHAN YILDIRIM","Erkek","2011-02-05",{"$error":"#VALUE!"},null,null,"32 NOLU SALON",null,null,null,null,null,null,null,null,null,null,null,null,null,null,null,null,"FUAT YILMAZ","Erkek",null,null,14,null,null,null,null,null,null,"NESLİHAN YILDIRIM"]
[null,37,37,"NUR ZÜHAL AKSU","Erkek","2011-02-06",{"$error":"#VALUE!"},null,null,"33 NOLU SALON",null,null,null,null,null,null,null,null,null,null,null,null,null,null,null,null,"ORHAN ELMADAĞI","Erkek",null,null,15,null,null,null,null,null,null,"NUR ZÜHAL AKSU"]
[null,38,38,"NURAY KÜLAHCI","Erkek","2011-02-07",{"$error":"#VALUE!"},null,null,"34 NOLU SALON",null,null,null,null,null,null,null,null,null,null,null,null,null,null,null,null,"DENİZ ÖZSOY","Erkek",null,null,16,null,null,null,null,null,null,"NURAY KÜLAHCI"]
[null,39,39,"ORHAN ELMADAĞI","Erkek","2011-02-08",{"$error":"#VALUE!"},null,null,"35 NOLU SALON",null,null,null,null,null,null,null,null,null,null,null,null,null,null,null,null,"GALİP KAYA","Erkek",null,null,17,null,null,null,null,null,null,"ORHAN ELMADAĞI"]
[null,40,40,"ÖZDEN KARAÇAY","Erkek","2011-02-09",{"$error":"#VALUE!"},null,null,"36 NOLU SALON",null,null,null,null,null,null,null,null,null,null,null,null,null,null,null,null,"AYŞEGÜL AYDOĞMUŞ","Erkek",null,null,18,null,null,null,null,null,null,"ÖZDEN KARAÇAY"]
[null,41,41,"RECEP YÜKSEL","Erkek","2011-02-10",{"$error":"#VALUE!"},null,null,"37 NOLU SALON",null,null,null,null,null,null,null,null,null,null,null,null,null,null,null,null,"MUTULLAH ÇETİN","Erkek",null,null,19,null,null,null,null,null,null,"RECEP YÜKSEL"]
[null,42,42,"SELÇUK ASLANTAŞ","Erkek","2011-02-11",{"$error":"#VALUE!"},null,null,"38 NOLU SALON",null,null,null,null,null,null,null,null,null,null,null,null,null,null,null,null,"HURŞUT BESEREK","Erkek",null,null,20,null,null,null,null,null,null,"SELÇUK ASLANTAŞ"]
[null,43,43,"ŞERİFE GEDİK","Erkek","2011-02-12",{"$error":"#VALUE!"},null,null,"39 NOLU SALON",null,null,null,null,null,null,null,null,null,null,null,null,null,null,null,null,"İSMAİL KİRAZ","Erkek",null,null,21,null,null,null,null,null,null,"ŞERİFE GEDİK"]
[null,44,44,"UMUT MOLU","Erkek","2011-02-13",{"$error":"#VALUE!"},null,null,"40 NOLU SALON",null,null,null,null,null,null,null,null,null,null,null,null,null,null,null,null,"KEMAL HANİLÇİ","Erkek",null,null,22,null,null,null,null,null,null,"UMUT MOLU"]
[null,45,45,"VEDAT HALICI","Erkek","2011-02-14",{"$error":"#VALUE!"},null,null,"41 NOLU SALON",null,null,null,null,null,null,null,null,null,null,null,null,null,null,null,null,"ABİDİN AKKAYA","Erkek",null,null,1,null,null,null,null,null,null,"VEDAT HALICI"]
[null,46,46,"VOLKAN ÖCAL","Erkek","2011-02-15",{"$error":"#VALUE!"},null,null,"42 NOLU SALON",null,null,null,null,null,null,null,null,null,null,null,null,null,null,null,null,"AYŞE KAKİLLİOĞLU","Erkek",null,null,2,null,null,null,null,null,null,"VOLKAN ÖCAL"]
[null,47,47,"YAVUZ SELİM GÖNEN","Erkek","2011-02-16",{"$error":"#VALUE!"},null,null,"43 NOLU SALON",null,null,null,null,null,null,null,null,null,null,null,null,null,null,null,null,"ALİ ERAKBIYIK","Erkek",null,null,3,null,null,null,null,null,null,"YAVUZ SELİM GÖNEN"]
[null,48,48,"ZEHRA DOĞAN","Erkek","2011-02-17",{"$error":"#VALUE!"},null,null,"44 NOLU SALON",null,null,null,null,null,null,null,null,null,null,null,null,null,null,null,null,"EROL PEKŞİN","Erkek",null,null,4,null,null,null,null,null,null,"ZEHRA DOĞAN"]
[null,49,49,"ZEHRA KÜÇÜK","Erkek","2011-02-18",{"$error":"#VALUE!"},null,null,"45 NOLU SALON",null,null,null,null,null,null,null,null,null,null,null,null,null,null,null,null,"CİHAN DEMİR","Erkek",null,null,5,null,null,null,null,null,null,"ZEHRA KÜÇÜK"]
[null,null,null,null,"Erkek","2011-02-19",null,null,null,"46 NOLU SALON"]
[null,null,null,null,"Erkek","2011-02-20",null,null,null,"47 NOLU SALON"]
[null,null,null,null,"Erkek","2011-02-21",null,null,null,"48 NOLU SALON"]
[null,null,null,null,"Erkek","2011-02-22",null,null,null,"49 NOLU SALON"]
[null,null,null,null,"Erkek","2011-02-23",null,null,null,"50 NOLU SALON"]
[null,null,null,null,"Erkek","2011-02-24"]
[null,null,null,null,"Erkek","2011-02-25"]
[null,null,null,null,"Erkek","2011-02-26"]
[null,null,null,null,"Erkek","2011-02-27"]
[null,null,null,null,"Erkek","2011-02-28"]
[null,null,null,null,"Erkek","2011-03-01"]
[null,null,null,null,"Erkek","2011-03-02"]
[null,null,null,null,"Erkek","2011-03-03"]
[null,null,null,null,"Erkek","2011-03-04"]
[null,null,null,null,"Erkek","2011-03-05"]
[null,null,null,null,"Erkek","2011-03-06"]
[null,null,null,null,"Erkek","2011-03-07"]
[null,null,null,null,"Erkek","2011-03-08"]
[null,null,null,null,"Erkek","2011-03-09"]
[null,null,null,null,"Erkek","2011-03-10"]
[null,null,null,null,"Erkek","2011-03-11"]
[null,null,null,null,"Erkek","2011-03-12"]
[null,null,null,null,"Erkek","2011-03-13"]
[null,null,null,null,"Erkek","2011-03-14"]
[null,null,null,null,"Erkek","2011-03-15"]
[null,null,null,null,"Erkek","2011-03-16"]
[null,null,null,null,"Erkek","2011-03-17"]
[null,null,null,null,"Erkek","2011-03-18"]
[null,null,null,null,"Erkek","2011-03-19"]
[null,null,null,null,"Erkek","2011-03-20"]
[null,null,null,null,"Erkek","2011-03-21"]
[null,null,null,null,"Erkek","2011-03-22"]
[null,null,null,null,"Erkek","2011-03-23"]
[null,null,null,null,"Erkek","2011-03-24"]
[null,null,null,null,"Erkek","2011-03-25"]
[null,null,null,null,"Erkek","2011-03-26"]
[null,null,null,null,"Erkek","2011-03-27"]
[null,null,null,null,"Erkek","2011-03-28"]
[null,null,null,null,"Erkek","2011-03-29"]
[null,null,null,null,"Erkek","2011-03-30"]
[null,null,null,null,"Erkek","2011-03-31"]
[null,null,null,null,"Erkek","2011-04-01"]
[null,null,null,null,"Erkek","2011-04-02"]
[null,null,null,null,"Erkek","2011-04-03"]
[null,null,null,null,"Erkek","2011-04-04"]
[null,null,null,null,"Erkek","2011-04-05"]
[null,null,null,null,"Erkek","2011-04-06"]
[null,null,null,null,"Erkek","2011-04-07"]
[null,null,null,null,"Erkek","2011-04-08"]
[null,null,null,null,"Erkek","2011-04-09"]
[null,null,null,null,"Erkek","2011-04-10"]

{"sheet":"Öğretmen Ata","index":1,"n_rows":21,"n_cols":4,"rows_kept":21,"cut":false,"hidden":true,"merged":[]}
[]
["S.NO","SALON ADI","SALON NO","SALON NO"]
[1,"12-A",null,"1. NOLU SALON"]
[2,"12-B",null,"2. NOLU SALON"]
[3,"12-C",null,"3. NOLU SALON"]
[4,"12-D",null,"4. NOLU SALON"]
[5,"12-E",null,"5. NOLU SALON"]
[6,"11-A",null,"6. NOLU SALON"]
[7,"11-B",null,"7. NOLU SALON"]
[8,"11-C",null,"8. NOLU SALON"]
[9,"11-D",null,"9. NOLU SALON"]
[10,"11-E",null,"10. NOLU SALON"]
[11,"11-F",null,"11. NOLU SALON"]
[12,"11-G",null,"12. NOLU SALON"]
[13,"11-H",null,"13. NOLU SALON"]
[14,"10-B",null,"14. NOLU SALON"]
[15,"10-C",null,"15. NOLU SALON"]
[16,"10-D",null,"16. NOLU SALON"]
[17,"10-E",null,"17. NOLU SALON"]
[18,"9-A",null,"18. NOLU SALON"]
[19,"9-B",null,"19. NOLU SALON"]

{"sheet":"Kura","index":2,"n_rows":63,"n_cols":6,"rows_kept":63,"cut":false,"hidden":false,"merged":[[9,3,11,3],[6,1,6,6],[4,2,4,6],[5,2,5,6]]}
[9," Kura  Hızını  Belirleyiniz.."]
[]
[]
[]
[null,"SALON ADI","SALON GÖREVLİSİNİN ADI  SOYADI"]
[]
[]
[]
[]
[]
[]
[]
[]
[]
[]
[]
[]
[]
[]
[]
[]
[]
[]
[]
[]
[]
[]
[]
[]
[]
[]
[]
[]
[null,"21 NOLU SALON",null,null,"DENİZ ÖZSOY","ALİ ERAKBIYIK"]
[null,"YEDEK SALON",null,null,"MAHMUT ALİDAĞI","MUSTAFA ARIK"]
[null,"23 NOLU SALON",null,null,"GALİP KAYA","MUHARREM ÇINAR"]
[null,"24 NOLU SALON",null,null,"HATİCE ÖÇAL","ARMAĞAN ÖZTÜRK"]
[null,"25 NOLU SALON",null,null,"MUSTAFA UÇAR"]
[null,"26 NOLU SALON"]
[null,"27 NOLU SALON"]
[null,"28 NOLU SALON"]
[null,"29 NOLU SALON"]
[null,"30 NOLU SALON"]
[null,"31 NOLU SALON"]
[null,"32 NOLU SALON"]
[null,"33 NOLU SALON"]
[null,"34 NOLU SALON"]
[null,"35 NOLU SALON"]
[null,"36 NOLU SALON"]
[null,"37 NOLU SALON"]
[null,"38 NOLU SALON"]
[null,"39 NOLU SALON"]
[null,"40 NOLU SALON"]
[null,"41 NOLU SALON"]
[null,"42 NOLU SALON"]
[null,"43 NOLU SALON"]
[null,"44 NOLU SALON"]
[null,"45 NOLU SALON"]
[null,"46 NOLU SALON"]
[null,"47 NOLU SALON"]
[null,"48 NOLU SALON"]
[null,"49 NOLU SALON"]
[null,"50 NOLU SALON"]

{"sheet":"Yazdır","index":3,"n_rows":59,"n_cols":6,"rows_kept":59,"cut":false,"hidden":false,"merged":[[2,1,2,5],[59,1,59,2],[60,1,60,2],[1,1,1,5]]}
[]
[null,"T.C\nKOCASİNAN KAYMAKAMLIĞI\n75.Yıl Cumhuriyet Anadolu Lisesi Müdürlüğü"]
[]
[null,"S.NO","SALON  ADI","SALON  BAŞKANI","GÖZETMEN","YEDEK GÖZETMEN"]
[null,1,"1 NOLU SALON",{"$f":"(Kura!E14)","v":0},{"$f":"(Kura!F14)","v":0},{"$f":"(Kura!G14)","v":0}]
[null,2,"2 NOLU SALON",{"$f":"(Kura!E15)","v":0},{"$f":"(Kura!F15)","v":0},{"$f":"(Kura!G15)","v":0}]
[null,3,"3 NOLU SALON",{"$f":"(Kura!E16)","v":0},{"$f":"(Kura!F16)","v":0},{"$f":"(Kura!G16)","v":0}]
[null,4,"4 NOLU SALON",{"$f":"(Kura!E17)","v":0},{"$f":"(Kura!F17)","v":0},{"$f":"(Kura!G17)","v":0}]
[null,5,"5 NOLU SALON",{"$f":"(Kura!E18)","v":0},{"$f":"(Kura!F18)","v":0},{"$f":"(Kura!G18)","v":0}]
[null,6,"6 NOLU SALON",{"$f":"(Kura!E19)","v":0},{"$f":"(Kura!F19)","v":0},{"$f":"(Kura!G19)","v":0}]
[null,7,"7 NOLU SALON",{"$f":"(Kura!E20)","v":0},{"$f":"(Kura!F20)","v":0},{"$f":"(Kura!G20)","v":0}]
[null,8,"8 NOLU SALON",{"$f":"(Kura!E21)","v":0},{"$f":"(Kura!F21)","v":0},{"$f":"(Kura!G21)","v":0}]
[null,9,"9 NOLU SALON",{"$f":"(Kura!E22)","v":0},{"$f":"(Kura!F22)","v":0},{"$f":"(Kura!G22)","v":0}]
[null,10,"10 NOLU SALON",{"$f":"(Kura!E23)","v":0},{"$f":"(Kura!F23)","v":0},{"$f":"(Kura!G23)","v":0}]
[null,11,"11 NOLU SALON",{"$f":"(Kura!E24)","v":0},{"$f":"(Kura!F24)","v":0},{"$f":"(Kura!G24)","v":0}]
[null,12,"12 NOLU SALON",{"$f":"(Kura!E25)","v":0},{"$f":"(Kura!F25)","v":0},{"$f":"(Kura!G25)","v":0}]
[null,13,"13 NOLU SALON",{"$f":"(Kura!E26)","v":0},{"$f":"(Kura!F26)","v":0},{"$f":"(Kura!G26)","v":0}]
[null,14,"14 NOLU SALON",{"$f":"(Kura!E27)","v":0},{"$f":"(Kura!F27)","v":0},{"$f":"(Kura!G27)","v":0}]
[null,15,"15 NOLU SALON",{"$f":"(Kura!E28)","v":0},{"$f":"(Kura!F28)","v":0},{"$f":"(Kura!G28)","v":0}]
[null,16,"16 NOLU SALON",{"$f":"(Kura!E29)","v":0},{"$f":"(Kura!F29)","v":0},{"$f":"(Kura!G29)","v":0}]
[null,17,"17 NOLU SALON",{"$f":"(Kura!E30)","v":0},{"$f":"(Kura!F30)","v":0},{"$f":"(Kura!G30)","v":0}]
[null,18,"18 NOLU SALON",{"$f":"(Kura!E31)","v":0},{"$f":"(Kura!F31)","v":0},{"$f":"(Kura!G31)","v":0}]
[null,19,"19 NOLU SALON",{"$f":"(Kura!E32)","v":0},{"$f":"(Kura!F32)","v":0},{"$f":"(Kura!G32)","v":0}]
[null,20,"20 NOLU SALON",{"$f":"(Kura!E33)","v":0},{"$f":"(Kura!F33)","v":0},{"$f":"(Kura!G33)","v":0}]
[null,21,"21 NOLU SALON",{"$f":"(Kura!E34)","v":"DENİZ ÖZSOY"},{"$f":"(Kura!F34)","v":"ALİ ERAKBIYIK"},{"$f":"(Kura!G34)","v":0}]
[null,22,"YEDEK SALON",{"$f":"(Kura!E35)","v":"MAHMUT ALİDAĞI"},{"$f":"(Kura!F35)","v":"MUSTAFA ARIK"},{"$f":"(Kura!G35)","v":0}]
[null,23,"23 NOLU SALON",{"$f":"(Kura!E36)","v":"GALİP KAYA"},{"$f":"(Kura!F36)","v":"MUHARREM ÇINAR"},{"$f":"(Kura!G36)","v":0}]
[null,24,"24 NOLU SALON",{"$f":"(Kura!E37)","v":"HATİCE ÖÇAL"},{"$f":"(Kura!F37)","v":"ARMAĞAN ÖZTÜRK"},{"$f":"(Kura!G37)","v":0}]
[null,25,"25 NOLU SALON",{"$f":"(Kura!E38)","v":"MUSTAFA UÇAR"},{"$f":"(Kura!F38)","v":0},{"$f":"(Kura!G38)","v":0}]
[null,26,"26 NOLU SALON",{"$f":"(Kura!E39)","v":0},{"$f":"(Kura!F39)","v":0},{"$f":"(Kura!G39)","v":0}]
[null,27,"27 NOLU SALON",{"$f":"(Kura!E40)","v":0},{"$f":"(Kura!F40)","v":0},{"$f":"(Kura!G40)","v":0}]
[null,28,"28 NOLU SALON",{"$f":"(Kura!E41)","v":0},{"$f":"(Kura!F41)","v":0},{"$f":"(Kura!G41)","v":0}]
[null,29,"29 NOLU SALON",{"$f":"(Kura!E42)","v":0},{"$f":"(Kura!F42)","v":0},{"$f":"(Kura!G42)","v":0}]
[null,30,"30 NOLU SALON",{"$f":"(Kura!E43)","v":0},{"$f":"(Kura!F43)","v":0},{"$f":"(Kura!G43)","v":0}]
[null,31,"31 NOLU SALON",{"$f":"(Kura!E44)","v":0},{"$f":"(Kura!F44)","v":0},{"$f":"(Kura!G44)","v":0}]
[null,32,"32 NOLU SALON",{"$f":"(Kura!E45)","v":0},{"$f":"(Kura!F45)","v":0},{"$f":"(Kura!G45)","v":0}]
[null,33,"33 NOLU SALON",{"$f":"(Kura!E46)","v":0},{"$f":"(Kura!F46)","v":0},{"$f":"(Kura!G46)","v":0}]
[null,34,"34 NOLU SALON",{"$f":"(Kura!E47)","v":0},{"$f":"(Kura!F47)","v":0},{"$f":"(Kura!G47)","v":0}]
[null,35,"35 NOLU SALON",{"$f":"(Kura!E48)","v":0},{"$f":"(Kura!F48)","v":0},{"$f":"(Kura!G48)","v":0}]
[null,36,"36 NOLU SALON",{"$f":"(Kura!E49)","v":0},{"$f":"(Kura!F49)","v":0},{"$f":"(Kura!G49)","v":0}]
[null,37,"37 NOLU SALON",{"$f":"(Kura!E50)","v":0},{"$f":"(Kura!F50)","v":0},{"$f":"(Kura!G50)","v":0}]
[null,38,"38 NOLU SALON",{"$f":"(Kura!E51)","v":0},{"$f":"(Kura!F51)","v":0},{"$f":"(Kura!G51)","v":0}]
[null,39,"39 NOLU SALON",{"$f":"(Kura!E52)","v":0},{"$f":"(Kura!F52)","v":0},{"$f":"(Kura!G52)","v":0}]
[null,40,"40 NOLU SALON",{"$f":"(Kura!E53)","v":0},{"$f":"(Kura!F53)","v":0},{"$f":"(Kura!G53)","v":0}]
[null,41,"41 NOLU SALON",{"$f":"(Kura!E54)","v":0},{"$f":"(Kura!F54)","v":0},{"$f":"(Kura!G54)","v":0}]
[null,42,"42 NOLU SALON",{"$f":"(Kura!E55)","v":0},{"$f":"(Kura!F55)","v":0},{"$f":"(Kura!G55)","v":0}]
[null,43,"43 NOLU SALON",{"$f":"(Kura!E56)","v":0},{"$f":"(Kura!F56)","v":0},{"$f":"(Kura!G56)","v":0}]
[null,44,"44 NOLU SALON",{"$f":"(Kura!E57)","v":0},{"$f":"(Kura!F57)","v":0},{"$f":"(Kura!G57)","v":0}]
[null,45,"45 NOLU SALON",{"$f":"(Kura!E58)","v":0},{"$f":"(Kura!F58)","v":0},{"$f":"(Kura!G58)","v":0}]
[null,46,"46 NOLU SALON",{"$f":"(Kura!E59)","v":0},{"$f":"(Kura!F59)","v":0},{"$f":"(Kura!G59)","v":0}]
[null,47,"47 NOLU SALON",{"$f":"(Kura!E60)","v":0},{"$f":"(Kura!F60)","v":0},{"$f":"(Kura!G60)","v":0}]
[null,48,"48 NOLU SALON",{"$f":"(Kura!E61)","v":0},{"$f":"(Kura!F61)","v":0},{"$f":"(Kura!G61)","v":0}]
[null,49,"49 NOLU SALON",{"$f":"(Kura!E62)","v":0},{"$f":"(Kura!F62)","v":0},{"$f":"(Kura!G62)","v":0}]
[null,50,"50 NOLU SALON",{"$f":"(Kura!E63)","v":0},{"$f":"(Kura!F63)","v":0},{"$f":"(Kura!G63)","v":0}]
[null,{"$f":"IF(E55=\"\",\"\",ROW(#REF!))","v":""},{"$f":"IF(E55=\"\",\"\",OFFSET(Liste!C$2,MATCH(E55,Liste!D$3:D$549,0),0))","v":""},null,null,{"$f":"IF(E55=\"\",\"\",OFFSET(Liste!G$2,MATCH(E55,Liste!D$3:D$549,0),0))","v":""}]
[null,{"$f":"IF(E56=\"\",\"\",ROW(#REF!))","v":""},{"$f":"IF(E56=\"\",\"\",OFFSET(Liste!C$2,MATCH(E56,Liste!D$3:D$549,0),0))","v":""},null,null,{"$f":"IF(E56=\"\",\"\",OFFSET(Liste!G$2,MATCH(E56,Liste!D$3:D$549,0),0))","v":""}]
[]
[null,{"$f":"IF(E58=\"\",\"\",ROW(#REF!))","v":""}]
[null,{"$f":"IF(E59=\"\",\"\",ROW(#REF!))","v":""}]

{"sheet":"Yazdır (2)","index":4,"n_rows":59,"n_cols":6,"rows_kept":59,"cut":false,"hidden":true,"merged":[[1,1,1,5],[2,1,2,5],[59,1,59,2],[60,1,60,2]]}
[]
[null,"T.C\nKOCASİNAN KAYMAKAMLIĞI\n75.Yıl Cumhuriyet Anadolu Lisesi Müdürlüğü"]
[]
[null,"S.NO","SALON NO","SALON BAŞKANI","GÖZETMEN","YEDEK GÖZETMEN"]
[null,1]
[null,2]
[null,3]
[null,4]
[null,5]
[null,6]
[null,7]
[null,8]
[null,9]
[null,10]
[null,11]
[null,12]
[null,13]
[null,14]
[null,15]
[null,16]
[null,17]
[null,18]
[null,19]
[null,20]
[null,21]
[null,22]
[null,23]
[null,24]
[null,25]
[null,26]
[null,27]
[null,28]
[null,29]
[null,30]
[null,31]
[null,32]
[null,33]
[null,34]
[null,35]
[null,36]
[null,37]
[null,38]
[null,39]
[null,40]
[null,41]
[null,42]
[null,43]
[null,44]
[null,45]
[null,46]
[null,47]
[null,48]
[null,49]
[null,50]
[null,{"$f":"IF(E55=\"\",\"\",ROW(#REF!))","v":""},{"$f":"IF(E55=\"\",\"\",OFFSET(Liste!C$2,MATCH(E55,Liste!D$3:D$549,0),0))","v":""},null,null,{"$f":"IF(E55=\"\",\"\",OFFSET(Liste!G$2,MATCH(E55,Liste!D$3:D$549,0),0))","v":""}]
[null,{"$f":"IF(E56=\"\",\"\",ROW(#REF!))","v":""},{"$f":"IF(E56=\"\",\"\",OFFSET(Liste!C$2,MATCH(E56,Liste!D$3:D$549,0),0))","v":""},null,null,{"$f":"IF(E56=\"\",\"\",OFFSET(Liste!G$2,MATCH(E56,Liste!D$3:D$549,0),0))","v":""}]
[]
[null,{"$f":"IF(E58=\"\",\"\",ROW(#REF!))","v":""}]
[null,{"$f":"IF(E59=\"\",\"\",ROW(#REF!))","v":""}]